Cogmind - Beta 13 *** ADVENTURER MODE // 2024.04.01 @ 23:49:28 Player: Tav Result: Self-destructed Performance ------------- Evolutions (2) 1000 Regions Visited (4) 800 Robots Destroyed (55) 275 Value Destroyed (1386) 1386 Prototype IDs (2) 40 Alien Tech Used (0) 0 Bonus (27) 27 TOTAL SCORE: 3528 Bonus ------- High Alert Combat Kills 27 Cogmind --------- Core Integrity 550/550 Matter 300/300 Energy 280/280 System Corruption 0% Temperature Cool (0) Movement Treading (160) Location -8/Materials Parts ------- > --- POWER (1) -------- Cooled Ion Engine > --- PROPULSION (4) --- Light Treads Light Treads > --- UTILITY (4) ------ Large Storage Unit Structural Scanner Experimental Sensor Array Signal Interpreter > --- WEAPON (2) ------- Small Laser EMP Blaster > --- INVENTORY (15) --- Ion Engine Light Nuclear Core Light Treads Light Treads Flight Unit Flight Unit Flight Unit Structural Scanner Sensor Array Terrain Scan Processor ECM Suite ECM Suite Light Assault Rifle Grenade Launcher Peak State ------------ > --- POWER ------------ Cooled Ion Engine > --- PROPULSION ------- Light Treads Light Treads > --- UTILITY ---------- Large Storage Unit Structural Scanner Experimental Sensor Array Signal Interpreter > --- WEAPON ----------- EMP Blaster Grenade Launcher > --- INVENTORY -------- Ion Engine Light Nuclear Core Light Treads Light Treads Flight Unit Flight Unit Flight Unit Structural Scanner Sensor Array Terrain Scan Processor ECM Suite ECM Suite Small Laser Light Assault Rifle [Rating: 21] Favorites ----------- Power Ion Engine Engine Ion Engine Power Core Light Nuclear Core Propulsion Light Treads Treads Light Treads Utility Large Storage Unit Device Structural Scanner Storage Large Storage Unit Processor Signal Interpreter Weapon Light Assault Rifle Energy Gun Small Laser Ballistic Gun Light Assault Rifle Launcher Grenade Launcher Build | -11 -10 -10 -9 -8 ------- Run | Yrd Mat Min Mat Mat Slots Evolved 4 | . . . 2 2 Power . | . . . . . Propulsion 2 | . . . . 2 Utility 2 | . . . 2 . Weapon . | . . . . . Parts Attached 22 | 5 4 3 10 . Power 3 | 1 . 1 1 . Engine 2 | 1 . . 1 . Core 1 | . . 1 . . Reactor . | . . . . . Propulsion 2 | 2 . . . . Treads 2 | 2 . . . . Leg . | . . . . . Wheel . | . . . . . Hover . | . . . . . Flight . | . . . . . Utility 6 | . 3 . 3 . Device 2 | . . . 2 . Storage 1 | . 1 . . . Processor 3 | . 2 . 1 . Hackware . | . . . . . Protection . | . . . . . Artifact . | . . . . . Weapon 11 | 2 1 2 6 . Energy Gun 1 | . . . 1 . Energy Cannon . | . . . . . Ballistic Gun 6 | 2 1 1 2 . Ballistic Cannon . | . . . . . Launcher 4 | . . 1 3 . Special Weapon . | . . . . . Impact Weapon . | . . . . . Slashing Weapon . | . . . . . Piercing Weapon . | . . . . . Special Melee Weapon . | . . . . . Unidentified Prototypes 2 | . . . 2 . Parts Lost 1 | . . . 1 . Power . | . . . . . Propulsion . | . . . . . Utility . | . . . . . Weapon 1 | . . . 1 . Highest Loss Streak 1 | . . . 1 . To Critical Strikes . | . . . . . Average Slot Usage (%) 97 | . 92 100 98 . Engine 8 | . 14 3 9 . Core 4 | . . 10 1 . Treads 26 | . 28 28 22 . Device 6 | . . . 20 . Storage 12 | . 11 14 11 . Processor 12 | . 9 14 12 . Ballistic Gun 17 | . 28 16 7 . Launcher 7 | . . 11 11 . Naked Turns . | . . . . . Heaviest Build 37 | 7 28 30 37 . Greatest Support 40 | 40 40 40 40 . Greatest Overweight (x) . | . . . . . Average Overweight (x) . | . . . . . Largest Inventory Capacity 15 | 5 15 15 15 . Average Capacity 13 | 5 12 15 15 . Most Carried 15 | 3 12 15 15 . Average Carried 11 | . 6 14 13 . Final Capacity 15 | 5 15 15 15 15 Final Carried 15 | 1 11 15 14 14 Class Distribution -------------------- 78% | Mutant 21% | Skirmisher Dominant Class ---------------- Mutant | -10/Materials Mutant | -10/Mines Skirmisher | -9/Materials Skirmisher | -8/Materials Resources | -11 -10 -10 -9 -8 ----------- Run | Yrd Mat Min Mat Mat Matter Collected 803 | 224 148 181 250 . Remotely . | . . . . . Salvage Created 1937 | . 463 360 1114 . Parts 142 | . 39 17 86 . Haulers Intercepted 2 | . 1 . 1 . Recyclers Shooed 3 | . 1 . 2 . Parts Field Recycled . | . . . . . Retrieved Matter . | . . . . . Parts Self-Destructed . | . . . . . Prevented . | . . . . . Kills | -11 -10 -10 -9 -8 ------- Run | Yrd Mat Min Mat Mat Combat Hostiles Destroyed 37 | . 10 9 18 . Guns 20 | . 10 6 4 . AOE 17 | . . 3 14 . Classes Destroyed 10 | . 6 2 2 . Worker 1 | . . . 1 . Builder 7 | . 1 . 6 . Tunneler 2 | . 1 . 1 . Hauler 2 | . 1 . 1 . Recycler 2 | . . 1 1 . Watcher 4 | . 2 . 2 . Swarmer 8 | . 3 3 2 . Grunt 22 | . 7 4 11 . Brawler 1 | . . . 1 . Sentry 6 | . . 2 4 . Best Kill Streak 9 | . 7 3 9 . Combat Bots Only 7 | . 7 3 6 . Max Kills in Single Turn 4 | . 1 2 4 . Gunslinging . | . . . . . Exploded 2 | . . 2 2 . Melee . | . . . . . Uniques/NPCs Destroyed . | . . . . . Combat | -11 -10 -10 -9 -8 -------- Run | Yrd Mat Min Mat Mat Hostile Shots Fired 117 | . 43 33 41 . Missed 38 | . 12 10 16 . Damage Taken 774 | . 267 268 239 . Core 143 | . 79 51 13 . Absorbed by Shields . | . . . . . Ignored by Resistances 232 | . 82 78 72 . Core Remaining (%) 81 | 100 . 48 96 . Volleys Fired 112 | . 42 30 40 . Largest 2 | . 2 2 2 . Hottest 73 | . 40 50 73 . Shots Fired 184 | . 84 50 50 . Gun 156 | . 84 47 25 . Cannon . | . . . . . Launcher 28 | . . 3 25 . Special . | . . . . . Kinetic 151 | . 84 47 20 . Thermal 5 | . . . 5 . Explosive 8 | . . 3 5 . Electromagnetic 20 | . . . 20 . Robot Hit Streak 17 | . 17 8 10 . Robot Miss Streak 2 | . 2 2 2 . Penetration Max . | . . . . . Secondary Targets 3 | . 1 1 1 . Max Gunslinging Chain 1 | . 1 1 1 . Shots Hit Robots 131 | . 65 36 30 . Core Hits 91 | . 31 19 41 . Critical Kills . | . . . . . Critical Parts Destroyed . | . . . . . Critical Strikes . | . . . . . Melee Attacks . | . . . . . Impact . | . . . . . Slashing . | . . . . . Piercing . | . . . . . Sneak Attacks . | . . . . . Combat Hostiles . | . . . . . Follow-up Attacks . | . . . . . Damage Inflicted 2321 | . 573 536 1212 . Guns 1101 | . 571 378 152 . Cannons . | . . . . . Explosions 1216 | . . 158 1058 . Melee . | . . . . . Ramming 4 | . 2 . 2 . Kinetic 1068 | . 571 378 119 . Thermal 174 | . . . 174 . Explosive 357 | . . 158 199 . Electromagnetic 718 | . . . 718 . Impact . | . . . . . Slashing . | . . . . . Piercing . | . . . . . Highest Corruption . | . . . . . Average Corruption . | . . . . . Corruption Purged . | . . . . . Corruption Blocked . | . . . . . Overload Shots . | . . . . . Overflow Damage 27 | . . . 27 . Projectiles . | . . . . . Explosions 27 | . . . 27 . Melee . | . . . . . Knockbacks . | . . . . . Impact . | . . . . . Kinetic . | . . . . . Secondary . | . . . . . Self-Inflicted Damage 32 | . . 30 2 . Shots 2 | . . 1 1 . Rammed 1 | . . . 1 . Targets Rammed 2 | . 1 . 1 . Kicked . | . . . . . Crushed 1 | . 1 . . . Highest Temperature 26 | . 18 26 10 . Average Temperature 8 | . 8 10 5 . Received Heat Transfer 426 | . 153 153 120 . Siege Activations . | . . . . . Robots Corrupted . | . . . . . Combat Hostiles . | . . . . . Parts Fried 6 | . . . 6 . Impact Corruptions . | . . . . . Robots Melted . | . . . . . Combat Hostiles . | . . . . . Parts Melted 4 | . . 4 . . Heat Transferred 425 | . . . 425 . Parts Sabotaged . | . . . . . Parts Stolen . | . . . . . Parts Stripped . | . . . . . Power Chain Reactions 8 | . . . 8 . Alert | -11 -10 -10 -9 -8 ------- Run | Yrd Mat Min Mat Mat Peak Influence 473 | . 169 189 473 . Initial 169 | . . 48 46 169 Average 135 | . 97 119 208 . Maximum Alert Level 2 | . . . 2 . Low Security (%) 80 | 100 100 100 37 . Level 1 16 | . . . 54 . Level 2 2 | . . . 8 . Level 3 . | . . . . . Level 4 . | . . . . . Level 5 . | . . . . . High Security . | . . . . . Max Security . | . . . . . Squads Dispatched 8 | . 4 . 4 . Investigation 5 | . 4 . 1 . Extermination . | . . . . . Reinforcement 3 | . . . 3 . Assault . | . . . . . Garrison . | . . . . . Intercept . | . . . . . Searches Triggered . | . . . . . Construction Impeded 2 | . . . 2 . Haulers Reinforced . | . . . . . Active Scanning Responses . | . . . . . Cargo Convoy Interrupts . | . . . . . Stealth | -11 -10 -10 -9 -8 --------- Run | Yrd Mat Min Mat Mat Distress Signals 4 | . 1 . 3 . Communications Jammed . | . . . . . Distress Signals . | . . . . . Times Spotted 49 | . 16 8 25 . Peak Tracking Total 5 | . 5 3 3 . Tactical Retreats . | . . . . . Traps | -11 -10 -10 -9 -8 ------- Run | Yrd Mat Min Mat Mat Traps Triggered 5 | . 4 . 1 . Indirectly 1 | . . . 1 . Trap Hack Attempts . | . . . . . Triggered . | . . . . . Disarmed . | . . . . . Reprogrammed . | . . . . . Reused . | . . . . . Traps Extracted . | . . . . . Installed . | . . . . . Triggered . | . . . . . Machines | -11 -10 -10 -9 -8 ---------- Run | Yrd Mat Min Mat Mat Machines Disabled 7 | . . 2 5 . Max in Single Turn 2 | . . 1 2 . Machines Repaired . | . . . . . Machines Dismantled . | . . . . . Machines Sabotaged . | . . . . . Overloaded Fab Kills . | . . . . . Hacking | -11 -10 -10 -9 -8 --------- Run | Yrd Mat Min Mat Mat Machines Accessed . | . . . . . Terminals . | . . . . . Fabricators . | . . . . . Repair Stations . | . . . . . Recycling Units . | . . . . . Scanalyzers . | . . . . . Garrison Access . | . . . . . Total Hacks . | . . . . . Successful . | . . . . . Failed . | . . . . . Catastrophic . | . . . . . Database Lockouts . | . . . . . Manual . | . . . . . Terminals . | . . . . . Fabricators . | . . . . . Repair Stations . | . . . . . Recycling Units . | . . . . . Scanalyzers . | . . . . . Garrison Access . | . . . . . Terminal Hacks . | . . . . . Fabricator Hacks . | . . . . . Repair Station Hacks . | . . . . . Recycling Unit Hacks . | . . . . . Scanalyzer . | . . . . . Garrison Access Hacks . | . . . . . Unauthorized Hacks . | . . . . . Terminals . | . . . . . Fabricators . | . . . . . Repair Stations . | . . . . . Recycling Units . | . . . . . Scanalyzers . | . . . . . Garrison Access . | . . . . . Data Cores Recovered . | . . . . . Used . | . . . . . Hacking Detections . | . . . . . Full Trace Events . | . . . . . Feedback Events . | . . . . . Feedback Blocked . | . . . . . Robot Schematics Acquired . | . . . . . Robots Built . | . . . . . Authchips . | . . . . . Time . | . . . . . Total Robot Build Rating . | . . . . . Part Schematics Acquired . | . . . . . Parts Built . | . . . . . Authchips . | . . . . . Time . | . . . . . Total Part Build Rating . | . . . . . Parts Repaired . | . . . . . Time . | . . . . . Parts Recycled . | . . . . . Recycled Matter . | . . . . . Retrieved Matter . | . . . . . Retrieved Components . | . . . . . Parts Scanalyzed . | . . . . . Part Schematics Acquired . | . . . . . Parts Damaged . | . . . . . Bothacking | -11 -10 -10 -9 -8 ------------ Run | Yrd Mat Min Mat Mat Used RIF Installer . | . . . . . Robots Hacked . | . . . . . Non-combat . | . . . . . Combat . | . . . . . Robot Hacks Applied . | . . . . . Relay Couplers Released . | . . . . . Fabnet Peak Effective % . | . . . . . Robots Rewired . | . . . . . Allies Hacked . | . . . . . Hacks Repelled . | . . . . . Allies | -11 -10 -10 -9 -8 -------- Run | Yrd Mat Min Mat Mat Total Allies . | . . . . . Largest Group . | . . . . . Highest-Rated Group . | . . . . . Highest-Rated Ally . | . . . . . Total Orders . | . . . . . Ally Attacks . | . . . . . Total Damage . | . . . . . Kills . | . . . . . Allies Corrupted . | . . . . . Allies Melted . | . . . . . Intel | -11 -10 -10 -9 -8 ------- Run | Yrd Mat Min Mat Mat Robot Analysis Total . | . . . . . Derelict Logs Recovered 1 | . . 1 . . Drone Launches . | . . . . . Drone Recoveries . | . . . . . Exploration | -11 -10 -10 -9 -8 ------------- Run | Yrd Mat Min Mat Mat Turns Passed 2015 | 82 590 732 611 . Spaces Moved 1039 | 49 268 405 317 . Core 6 | 6 . . . . Treads 1033 | 43 268 405 317 . Legs . | . . . . . Wheels . | . . . . . Hover . | . . . . . Flight . | . . . . . Fastest Speed 50 | 50 160 160 160 . Average Speed 159 | 146 160 160 160 . Slowest Speed 160 | 160 160 160 160 . Overloaded Moves . | . . . . . Propulsion Burnouts . | . . . . . Robots Hopped . | . . . . . Cave-ins Triggered . | . . . . . Exploration Rate (%) 36 | 4 63 90 25 1 Regions Visited 4 Branch Regions 1 Pre-discovered Areas 2 | . . 2 . . Known Exits Taken 3 | . 1 1 1 . Unknown Exits Taken 1 | 1 . . . . Scrap Searched 1 | . . 1 . . Spaces Dug . | . . . . . Terrain Destroyed 66 | . . 18 48 . Melee . | . . . . . Projectile . | . . . . . AOE 66 | . . 18 48 . Terrain Rammed . | . . . . . Walls Destroyed . | . . . . . Machines Disabled . | . . . . . Actions | -11 -10 -10 -9 -8 --------- Run | Yrd Mat Min Mat Mat Total 1232 | 59 360 442 371 . Wait 31 | . 31 . . . Move 1035 | 48 267 404 316 . Hop . | . . . . . Pick Up 27 | 6 14 4 3 . Fast Attach . | . . . . . Attach 11 | 5 2 . 4 . Detach 1 | . . . 1 . Swap 11 | . 2 3 6 . Drop 2 | . 1 1 . . Fire 112 | . 42 30 40 . Melee . | . . . . . Ram . | . . . . . Kick . | . . . . . Crush 2 | . 1 . 1 . Escape Stasis . | . . . . . Rewire . | . . . . . Trap . | . . . . . Miscellaneous . | . . . . . Route ------- -11/Scrapyard -10/Materials (discovered 4 exits: *Mat x2 / *Min x2) -10/Mines (discovered 2 exits: *Mat x2) -9/Materials -8/Materials History --------- Turn | Location | Event 2 | -11/Scrapyard | Discovered new exit (range 16) 83 | -11/Scrapyard | Entered Materials 315 | -10/Materials | Build established: Mutant 398 | -10/Materials | Discovered new exit (range 11) 453 | -10/Materials | Discovered new exit (range 12) 523 | -10/Materials | Destroyed 7 combat bots 531 | -10/Materials | Discovered new exit (range 18) 665 | -10/Materials | Discovered new exit (range 5) 672 | -10/Materials | Identified exit to Mines 673 | -10/Materials | Entered Mines 674 | -10/Mines | Learned location of Storage (-9) 696 | -10/Mines | Joined a pair of Derelicts in attacking an 0b10 outpost 798 | -10/Mines | Found a damaged Exp. Sensor Array with a note attached 801 | -10/Mines | Found Prototype Device 1083 | -10/Mines | Discovered new exit (range 7) 1100 | -10/Mines | Identified exit to Materials 1118 | -10/Mines | Learned location of Mines (-8) 1333 | -10/Mines | Discovered exit to Materials (range 3) 1377 | -10/Mines | Core integrity fell below 50% 1405 | -10/Mines | Entered Materials 1405 | -9/Materials | Evolved 2 slots: Utility x2 1502 | -9/Materials | Identified Exp. Sensor Array 1851 | -9/Materials | Discovered new exit (range 16) 1877 | -9/Materials | Identified exit to Materials 1883 | -9/Materials | Build established: Skirmisher 2016 | -9/Materials | Entered another Materials area 2016 | -8/Materials | Evolved 2 slots: Propulsion x2 2016 | -8/Materials | Self-destructed Last Messages --------------- Chain reaction triggered in Corrupted Lgt. Ion Engine. G-34 Mercenary destroyed. U-05 Engineer destroyed. G-34 Mercenary destroyed. K-01 Serf collects debris. Y-45 Defender destroyed. Terminal unresponsive. Slammed into U-05 Engineer. ALERT: Construction progress impeded, dispatching reinforcements to local area. G-34 Mercenary destroyed. U-05 Engineer lays Concrete. G-34 Mercenary destroyed. Chain reaction triggered in Corrupted Ion Engine. Acquired 17 matter. PARAMETERS=PROPULSION+2 LOCATION=MATERIALS GOAL=ESCAPE Map ----- +----------------------------------------------------+ | | | | | | | | | | | | | | | | | | | | | | | | | | | | | | | | | ?????????????????????????????????????????????????? | | ?????????????????????????????????????????????????? | | ?????????????????????????????????????????????????? | | ?????????????????????????????????????????????????? | | ?????????????????????????????????????????????????? | | ?????????????????????????????????????????????????? | | ?????????????????????########????????????????????? | | ?????????????????????########????????????????????? | | ?????????????????????## ##????????????????????? | | ?????????????????????## @ ##????????????????????? | | ?????????????????????## ##????????????????????? | | ?????????????????????## ##????????????????????? | | ?????????????????????## ##????????????????????? | | ?????????????????????## # ????????????????????? | | ????????????????????? # # ????????????????????? | | ????????????????????? # # ????????????????????? | | ????????????????????? # # ????????????????????? | | ????????????????????? # # ????????????????????? | | ????????????????????? # + ????????????????????? | | ????????????????????? # ##????????????????????? | | ????????????????????? # ##????????????????????? | | ????????????????????? # ##????????????????????? | | ?????????????????????## #????????????????????? | | ????????????????????? ??????????????????????? | | ??????????????????????? ??????????????????????? | | ?????????????????????????????????????????????????? | | ?????????????????????????????????????????????????? | | ?????????????????????????????????????????????????? | | ?????????????????????????????????????????????????? | | ?????????????????????????????????????????????????? | | ?????????????????????????????????????????????????? | | ?????????????????????????????????????????????????? | | ?????????????????????????????????????????????????? | | ?????????????????????????????????????????????????? | +----------------------------------------------------+ Best States ------------- Heat Dissipation 28 Energy Generation 14 Energy Capacity 280 Matter Stores 300 Matter Capacity 300 Sight Range 18 Robot Scan Range 20 Terrain Scan Density 10 Resistance: KI 20 Resistance: TH 20 Resistance: EX 20 Resistance: EM 20 Resistance: I 20 Resistance: S 20 Resistance: P 20 Evasion (%) 40 Targeting Accuracy 5 Recoil Reduction 2 Offensive Hacking 10 Item Schematics ----------------- None Robot Schematics ------------------ None Fabricated ------------ Nothing Alien Tech Used ----------------- None Achievements -------------- Party Time Challenges ------------ None Game ------ Seed ScanTransportWeb Manual? 0 Play Time 00:16:01 Cumulative 8.9 hours Start 2024.04.01 @ 23:33:18 End 2024.04.01 @ 23:49:28 Sessions 1 Manual Loads 0 Difficulty Adventurer Special Mode None Game No. 13 Rogue 0 Adventurer 13 Explorer 0 Win Type - Total 0 Types 0/0/0/0/0/0/0/0/0 Lore% 12 Gallery% 22 Achievement% 19 Wizard Run 0 Options --------- Layout 1 ASCII 0 Keyboard 0 Movement Mouse Keybinds 0 Fullscreen 1 Font 24/Smallcaps Map View 50x35 Zoom Use 0% Tactical HUD 0 Map Filters NONE Filters NONE Steam 1 RUN: ebf79c33-7fdd-49a2-9a0f-d1d0d35f5b51